Workbook

Sheet Read Me
B2: AUTOMATIC VERIFICATION OF CG LOCATION
B4: This application contains a function which will check of the resulting CG is located within the CG envelope.
B5: In order to have this function working properly, you are to click 'ENABLE' upon the EXCEL notification
B6: concerning the presence of a macro coded function.
B8: If you do not get this notification after loading the application, then you need to change a setting in
B9: EXCEL options as follows:
B11: 1: Go to FILE > OPTIONS > Select TRUST CENTER > Trust Center Settings:
B40: 2: Go to MACRO SETTINGS and select 'DISABLE VBA MACROS WITH NOTIFICATION', close screen with OK
D41: b
B69: Thereafter reload the application and click 'ENABLE' when prompted regarding macros,

Sheet OOCFC
A2: This application is no replacement for weight & balance calculation foreseen in the Aircraft Flight Manual, it is only intended to be a friendly assistance tool. The Aircraft Flight Manual & weighing report remain the only reference documents. | B2: PIPER TOMAHAWK PA-38 | G2: OO-CFC
B3: Max TakeOff weight | E3: 757 | F3: Kg
B4: Max Landing weight | E4: 757 | F4: Kg
B5: Fuel tanks max usable capacity | E5: 30 | F5: USG
B7: Item | D7: Max weight | E7: Weight | G7: Arm | H7: Moment
E8: Kgs | F8: Lbs | G8: (Inch) | H8: (In/Lbs)
B9: Empty weight | E9: =Sheet1!D12 -> 544 | F9: =Sheet1!E12 -> 1199.31328 | G9: =Sheet1!F12 -> 74.6 | H9: =Sheet1!G12 -> 89388.6
B11: Pilot | E11: 75 | F11: =Sheet1!E13 -> 165.3465 | G11: =Sheet1!F13 -> 85.5 | H11: =Sheet1!G13 -> 14137.12575
B12: Front seat pax | E12: 75 | F12: =Sheet1!E14 -> 165.3465 | G12: =Sheet1!F14 -> 85.5 | H12: =Sheet1!G14 -> 14137.12575
B16: Bagage area | D16: 45 | E16: 5 | F16: =Sheet1!E17 -> 11.0231 | G16: =Sheet1!F17 -> 115 | H16: =Sheet1!G17 -> 1267.6565
B17: Fuel tanks (%) | C17: 0.75 | D17: 82 | E17: =Sheet1!D18 -> 60.9829551 | F17: =Sheet1!E18 -> 134.4442425 | G17: =Sheet1!F18 -> 75.4 | H17: =Sheet1!G18 -> 10137.09588
B18: Equals: | C18: =CONCATENATE(ROUND(Sheet1!C36,0)," Lit") -> 85 Lit | D18: =CONCATENATE(ROUND(Sheet1!C35,0)," Lit") -> 81 Lit | E18: = Max usable fuel amount
B19: TakeOff weight | D19: =E3 -> 757 | E19: =Sheet1!D19 -> 759.9829551 | F19: =Sheet1!E19 -> 1675.473622 | G19: =Sheet1!F19 -> 77.03350393 | H19: =Sheet1!G19 -> 129067.6039
B20: Fuel burn | C20: 20 | D20: Lit | E20: =Sheet1!D20 -> -14.32 | F20: =Sheet1!E20 -> -31.5701584 | G20: =Sheet1!F20 -> 75.4 | H20: =Sheet1!G20 -> -2380.389943
B21: Landing weight | D21: =E4 -> 757 | E21: =Sheet1!D21 -> 745.6629551 | F21: =Sheet1!E21 -> 1643.903464 | G21: =Sheet1!F21 -> 77.06487437 | H21: =Sheet1!G21 -> 126687.2139
B24: Validation:
B25: Max takeoff weight | D25: =IF(NOT(Sheet1!F53),"OK",CONCATENATE("Exceeded by ",ROUND(Sheet1!G53,2)," kg")) -> Exceeded by 2,98 kg | M25: =IF(ISERROR(L25),TRUE,FALSE) -> FALSE
B26: Max landing weight | D26: =IF(NOT(Sheet1!F54),"OK",CONCATENATE("Exceeded by ",ROUND(Sheet1!G54,2)," kg")) -> OK
B27: CG location in envelope | D27: =IF(NOT(Sheet1!F55),"OK","OUTSIDE envelope") -> 
B29: Notes: | C29: =Sheet1!B57 -> Envelope check inactive, verify location CG in graphic
A31: (X-axis= CG location in inches from datum / Y-axis= weight in lbs) | H31: =Sheet1!B7 -> PVHA 12/2023
A32: POH Sect 2-Limitations: CG envelope for NORMAL & UTILITY operation are identical

Sheet FGVUN
A2: This application is no replacement for weight & balance calculation foreseen in the Aircraft Flight Manual, it is only intended to be a friendly assistance tool. The Aircraft Flight Manual & weighing report remain the only reference documents. | B2: GRUMMAN AG5B | G2: F-GVUN
B3: Max TakeOff weight | E3: 1088 | F3: Kg
B4: Max Landing weight | E4: 1088 | F4: Kg
B5: Fuel tanks max usable capacity | E5: 51 | F5: Usg
B7: Item | D7: Max weight | E7: Weight | G7: Arm | H7: Moment
E8: Kgs | F8: Lbs | G8: (m) | H8: (m/kg)
B9: Empty weight | E9: =Sheet1!L12 -> 707.32 | F9: =Sheet1!M12 -> 1559.371818 | G9: =Sheet1!N12 -> 2.108 | H9: =Sheet1!O12 -> 1490.795
B11: Pilot | E11: 75 | F11: =Sheet1!M13 -> 165.3465 | G11: =Sheet1!N13 -> 2.301 | H11: =Sheet1!O13 -> 172.575
B12: Front seat pax | E12: 65 | F12: =Sheet1!M14 -> 143.3003 | G12: =Sheet1!N14 -> 2.301 | H12: =Sheet1!O14 -> 149.565
B13: Rear seat pax 1 | E13: 75 | F13: =Sheet1!M15 -> 165.3465 | G13: =Sheet1!N15 -> 3.2 | H13: =Sheet1!O15 -> 240
B14: Rear seat pax 2 | E14: 70 | F14: =Sheet1!M16 -> 154.3234 | G14: =Sheet1!N16 -> 3.2 | H14: =Sheet1!O16 -> 224
B16: Bagage area | D16: =Sheet1!K17 -> 54 | E16: 5 | F16: =Sheet1!M17 -> 11.0231 | G16: =Sheet1!N17 -> 3.759 | H16: =Sheet1!O17 -> 18.795
B17: Fuel tanks (%) | C17: 0.6 | E17: =Sheet1!L18 -> 82.93681894 | F17: =Sheet1!M18 -> 182.8441698 | G17: =Sheet1!N18 -> 2.408 | H17: =Sheet1!O18 -> 199.71186
B18: Equals | C18: =CONCATENATE(ROUND(Sheet1!K36,0)," Lit") -> 116 Lit | D18: =CONCATENATE(ROUND(Sheet1!J35,0)," Lit") -> 193 Lit | E18: = Max usable fuel amount
B19: TakeOff weight | D19: =E3 -> 1088 | E19: =Sheet1!L19 -> 1080.256819 | F19: =Sheet1!M19 -> 2381.555788 | G19: =Sheet1!N19 -> 2.310044997 | H19: =Sheet1!O19 -> 2495.44186
B20: Fuel burn | C20: 30 | D20: Lit | E20: =Sheet1!L20 -> -21.48 | F20: =Sheet1!M20 -> -47.3552376 | G20: =Sheet1!N20 -> 2.408 | H20: =Sheet1!O20 -> -51.72384
B21: Landing weight | D21: =E4 -> 1088 | E21: =Sheet1!L21 -> 1058.776819 | F21: =Sheet1!M21 -> 2334.200551 | G21: =Sheet1!N21 -> 2.308057729 | H21: =Sheet1!O21 -> 2443.71802
B24: Validation:
B25: Max takeoff weight | D25: =IF(NOT(Sheet1!N53),"OK",CONCATENATE("Exceeded by ",ROUND(Sheet1!O53,2)," kg")) -> OK
B26: Max landing weight | D26: =IF(NOT(Sheet1!N54),"OK",CONCATENATE("Exceeded by ",ROUND(Sheet1!O54,2)," kg")) -> OK
B27: CG location in envelope | D27: =IF(NOT(Sheet1!N55),"OK","OUTSIDE envelope") -> 
B29: Notes: | C29: =Sheet1!J57 -> Fuel up to the TAB's equals 72% or 139 lit usable (36,4 Usg) Envelope check inactive, verify location CG in graphic
A31: (X-axis= CG location in m from datum / Y-axis= weight in kg) | H31: =Sheet1!B7 -> PVHA 12/2023

Sheet OORAQ
A2: This application is no replacement for weight & balance calculation foreseen in the Aircraft Flight Manual, it is only intended to be a friendly assistance tool. The Aircraft Flight Manual & weighing report remain the only reference documents. | B2: CESSNA 172 | G2: OO-RAQ
B3: Max TakeOff weight | E3: 1043 | F3: Kg
B4: Max Landing weight | E4: 1043 | F4: Kg
B5: Fuel tanks max usable capacity | E5: 38 | F5: Usg
B7: Item | D7: Max weight | E7: Weight | G7: Arm | H7: Moment
E8: Kgs | F8: Lbs | G8: (cm) | H8: (cm/kg)
B9: Empty weight | E9: =Sheet1!T12 -> 669.0495414 | F9: =Sheet1!U12 -> 1475 | G9: =Sheet1!V12 -> 97.0026 | H9: =Sheet1!W12 -> 64899.54504
B11: Pilot | E11: 77 | F11: =Sheet1!U13 -> 169.75574 | G11: =Sheet1!V14 -> 93.6955 | H11: =Sheet1!W13 -> 7214.5535
B12: Front seat pax | E12: 77 | F12: =Sheet1!U14 -> 169.75574 | G12: =Sheet1!V14 -> 93.6955 | H12: =Sheet1!W14 -> 7214.5535
B13: Rear seat pax 1 | E13: 77 | F13: =Sheet1!U15 -> 169.75574 | G13: =Sheet1!V15 -> 187.391 | H13: =Sheet1!W15 -> 14429.107
B14: DO NOT LOAD MORE THAN 1 PAX IN THE REAR
B16: Bagage area | D16: 54 | E16: 5 | F16: =Sheet1!U17 -> 11.0231 | G16: =Sheet1!V17 -> 239.4366197 | H16: =Sheet1!W17 -> 1197.183098
B17: Fuel tanks (%) | C17: 0.8 | D17: =Sheet1!S35 -> 102.9934353 | E17: =Sheet1!T18 -> 82.39474822 | F17: =Sheet1!U18 -> 181.6491098 | G17: =Sheet1!V18 -> 105.8333 | H17: =Sheet1!W18 -> 8720.108107
B18: Equals | C18: =CONCATENATE(ROUND(Sheet1!S36,0)," Lit") -> 115 Lit | D18: =CONCATENATE(ROUND(Sheet1!R35,0)," Lit") -> 144 Lit | E18: = Max usable fuel amount
B19: TakeOff weight | D19: =E3 -> 1043 | E19: =Sheet1!T19 -> 987.4442896 | F19: =Sheet1!U19 -> 2176.93943 | G19: =Sheet1!V19 -> 104.9933159 | H19: =Sheet1!W19 -> 103675.0503
B20: Fuel burn | C20: 30 | D20: Lit | E20: =Sheet1!T20 -> -21.48 | F20: =Sheet1!U20 -> -47.3552376 | G20: =Sheet1!V20 -> 105.8333 | H20: =Sheet1!W20 -> -2273.299284
B21: Landing weight | D21: =E4 -> 1043 | E21: =Sheet1!T21 -> 965.9642896 | F21: =Sheet1!U21 -> 2129.584192 | G21: =Sheet1!V21 -> 104.9746373 | H21: =Sheet1!W21 -> 101401.751
B24: Validation:
B25: Max takeoff weight | D25: =IF(NOT(Sheet1!V53),"OK",CONCATENATE("Exceeded by ",ROUND(Sheet1!W53,2)," kg")) -> OK
B26: Max landing weight | D26: =IF(NOT(Sheet1!V54),"OK",CONCATENATE("Exceeded by ",ROUND(Sheet1!W54,2)," kg")) -> OK
B27: CG location in envelope | D27: =IF(NOT(Sheet1!V55),"OK","OUTSIDE envelope") -> 
B29: Notes: | C29: =Sheet1!R57 -> Envelope check inactive, verify location CG in graphic
A31: (X-axis= CG location in cm from datum / Y-axis= weight in kg) | H31: =Sheet1!B7 -> PVHA 12/2023

Sheet Sheet1 (hidden)
A1: Calculation
B2: AVGAS 100LL | C2: Kg/Lit | D2: 0.716
B3: USG to | C3: Liter | D3: 3.78541
B4: Kg to | C4: Lbs | D4: 2.20462
A6: Entries from POH(Sect 6) and weight report (shaded blue)
A7: Updated | B7: PVHA 12/2023
A10: OOCFC | D10: Total | I10: FGVUN | L10: Total | Q10: OORAQ | T10: Total
A11: Weight & CG | B11: Liters | C11: Max | D11: KgWeight | E11: LbWeight | F11: CG | G11: Moment | I11: Weight & CG | J11: Liters | K11: Max | L11: KgWeight | M11: LbWeight | N11: CG | O11: Moment | Q11: Weight & CG | R11: Liters | S11: Max | T11: KgWeight | U11: LbWeight | V11: CG | W11: Moment
A12: Empty | B12: (From weight report >) | D12: 544 | E12: =D12*$D$4 -> 1199.31328 | F12: 74.6 | G12: 89388.6 | I12: Empty | J12: (From weight report >) | L12: 707.32 | M12: =L12*$D$4 -> 1559.371818 | N12: 2.108 | O12: 1490.795 | Q12: Empty | R12: (From weight report >) | T12: 669.0495414 | U12: 1475 | V12: 97.0026 | W12: =T12*V12 -> 64899.54504
A13: Pilot | D13: =INDIRECT(A$10&"!$E$11") -> 75 | E13: 165.3465 | F13: 85.5 | G13: =E13*F13 -> 14137.12575 | I13: Pilot | L13: =INDIRECT(I$10&"!$E$11") -> 75 | M13: 165.3465 | N13: 2.301 | O13: =L13*N13 -> 172.575 | Q13: Pilot | S13: 181.4371638 | T13: =INDIRECT(Q$10&"!$E$11") -> 77 | U13: =T13*$D$4 -> 169.75574 | V13: 93.6955 | W13: =T13*V13 -> 7214.5535
A14: CoPilot | D14: =INDIRECT(A$10&"!E12") -> 75 | E14: 165.3465 | F14: 85.5 | G14: =E14*F14 -> 14137.12575 | I14: CoPilot | L14: =INDIRECT(I$10&"!E12") -> 65 | M14: 143.3003 | N14: 2.301 | O14: =L14*N14 -> 149.565 | Q14: CoPilot | T14: =INDIRECT(Q$10&"!E12") -> 77 | U14: 169.75574 | V14: 93.6955 | W14: =T14*V14 -> 7214.5535
A15: Rear1 pax | D15: =INDIRECT(A$10&"!E13") -> 0 | E15: 0 | F15: 0 | G15: 0 | I15: Rear1 pax | L15: =INDIRECT(I$10&"!E13") -> 75 | M15: 165.3465 | N15: 3.2 | O15: 240 | Q15: Rear1 pax | S15: 181.4371638 | T15: =INDIRECT(Q$10&"!E13") -> 77 | U15: 169.75574 | V15: 187.391 | W15: 14429.107
A16: Rear2 pax | D16: =INDIRECT(A$10&"!E14") -> 0 | E16: 0 | F16: 0 | G16: 0 | I16: Rear2 pax | L16: =INDIRECT(I$10&"!E14") -> 70 | M16: 154.3234 | N16: 3.2 | O16: 224 | Q16: Rear2 pax | T16: =INDIRECT(Q$10&"!E14") -> 0 | U16: 0 | V16: 0 | W16: 0
A17: Bags | C17: 45 | D17: =INDIRECT(A$10&"!E16") -> 5 | E17: 11.0231 | F17: 115 | G17: 1267.6565 | I17: Bags | K17: 54 | L17: =INDIRECT(I$10&"!E16") -> 5 | M17: 11.0231 | N17: 3.759 | O17: 18.795 | Q17: Bags | S17: 45 | T17: =INDIRECT(Q$10&"!E16") -> 5 | U17: 11.0231 | V17: 239.4366197 | W17: 1197.183098
A18: Fuel | B18: =C36 -> 85.171725 | D18: =D36 -> 60.9829551 | E18: 134.4442425 | F18: 75.4 | G18: 10137.09588 | I18: Fuel | J18: =K36 -> 115.833546 | L18: =L36 -> 82.93681894 | M18: 182.8441698 | N18: 2.408 | O18: 199.71186 | Q18: Fuel | R18: =S36 -> 115.076464 | T18: =T36 -> 82.39474822 | U18: 181.6491098 | V18: 105.8333 | W18: 8720.108107
A19: TOW | C19: =INDIRECT(A$10&"!E3") -> 757 | D19: =SUM(D12:D18) -> 759.9829551 | E19: =SUM(E12:E18) -> 1675.473622 | F19: =G19/E19 -> 77.03350393 | G19: =SUM(G12:G18) -> 129067.6039 | I19: TOW | K19: =INDIRECT(I$10&"!E3") -> 1088 | L19: =SUM(L12:L18) -> 1080.256819 | M19: =SUM(M12:M18) -> 2381.555788 | N19: =O19/L19 -> 2.310044997 | O19: =SUM(O12:O18) -> 2495.44186 | Q19: TOW | S19: =INDIRECT(Q$10&"!E3") -> 1043 | T19: =SUM(T12:T18) -> 987.4442896 | U19: =SUM(U12:U18) -> 2176.93943 | V19: =W19/T19 -> 104.9933159 | W19: =SUM(W12:W18) -> 103675.0503
A20: Burn | B20: =INDIRECT(A$10&"!C20") -> 20 | D20: =D37 -> -14.32 | E20: =D20*$D$4 -> -31.5701584 | F20: 75.4 | G20: =E20*F20 -> -2380.389943 | I20: Burn | J20: =INDIRECT(I$10&"!C20") -> 30 | L20: =L37 -> -21.48 | M20: =L20*$D$4 -> -47.3552376 | N20: 2.408 | O20: -51.72384 | Q20: Burn | R20: =INDIRECT(Q$10&"!C20") -> 30 | T20: =T37 -> -21.48 | U20: =T20*$D$4 -> -47.3552376 | V20: 105.8333 | W20: =T20*V20 -> -2273.299284
A21: LW | C21: =INDIRECT(A$10&"!E4") -> 757 | D21: =SUM(D19,D20) -> 745.6629551 | E21: =SUM(E19,E20) -> 1643.903464 | F21: =G21/E21 -> 77.06487437 | G21: =SUM(G19:G20) -> 126687.2139 | I21: LW | K21: =INDIRECT(I$10&"!E4") -> 1088 | L21: =SUM(L19,L20) -> 1058.776819 | M21: =SUM(M19,M20) -> 2334.200551 | N21: =O21/L21 -> 2.308057729 | O21: =SUM(O19:O20) -> 2443.71802 | Q21: LW | S21: =INDIRECT(Q$10&"!E4") -> 1043 | T21: =SUM(T19,T20) -> 965.9642896 | U21: =SUM(U19,U20) -> 2129.584192 | V21: =W21/T21 -> 104.9746373 | W21: =SUM(W19:W20) -> 101401.751
A23: Graphic | D23: =D12 -> 544 | E23: =E12 -> 1199.31328 | F23: =F12 -> 74.6 | G23: =G12 -> 89388.6 | I23: Graphic | L23: =L12 -> 707.32 | M23: =M12 -> 1559.371818 | N23: =N12 -> 2.108 | O23: =O12 -> 1490.795 | Q23: Graphic | T23: =T12 -> 669.0495414 | U23: =U12 -> 1475 | V23: =V12 -> 97.0026 | W23: =W12 -> 64899.54504
A24: Pilot | D24: =E24/D$4 -> 619 | E24: =E23+E13 -> 1364.65978 | F24: =G24/E24 -> 75.86193077 | G24: =G23+G13 -> 103525.7258 | I24: Pilot | L24: =L23+L13 -> 782.32 | M24: =L24*$D$4 -> 1724.718318 | N24: =O24/L24 -> 2.126201554 | O24: =O23+O13 -> 1663.37 | Q24: Pilot | T24: =T23+T13 -> 746.0495414 | U24: =T24*$D$4 -> 1644.75574 | V24: =W24/T24 -> 96.6612732 | W24: =W23+W13 -> 72114.09854
A25: CoPilot | D25: 694 | E25: =E24+E14 -> 1530.00628 | F25: =G25/E25 -> 76.90350885 | G25: =G24+G14 -> 117662.8515 | I25: CoPilot | L25: =L24+L14 -> 847.32 | M25: =L25*$D$4 -> 1868.018618 | N25: =O25/L25 -> 2.139610773 | O25: =O24+O14 -> 1812.935 | Q25: CoPilot | T25: =T24+T14 -> 823.0495414 | U25: =T25*$D$4 -> 1814.51148 | V25: =W25/T25 -> 96.38381173 | W25: =W24+W14 -> 79328.65204
A26: Rear1 pax | D26: 694 | E26: =E25+E15 -> 1530.00628 | F26: =G26/E26 -> 76.90350885 | G26: =G25+G15 -> 117662.8515 | I26: Rear1 pax | L26: =L25+L15 -> 922.32 | M26: 2033.365118 | N26: 2.225838104 | O26: =O25+O15 -> 2052.935 | Q26: Rear1 pax | T26: =T25+T15 -> 900.0495414 | U26: 1984.26722 | V26: 104.1695537 | W26: =W25+W15 -> 93757.75904
A27: Rear2 pax | D27: 694 | E27: 1530.00628 | F27: 76.90350885 | G27: 117662.8515 | I27: Rear2 pax | L27: 992.32 | M27: 2187.688518 | N27: 2.294557199 | O27: 2276.935 | Q27: Rear2 pax | T27: 900.0495414 | U27: 1984.26722 | V27: 104.1695537 | W27: 93757.75904
A28: Bags | D28: 699 | E28: 1541.02938 | F28: 77.17601594 | G28: 118930.508 | I28: Bags | L28: 997.32 | M28: 2198.711618 | N28: 2.30189909 | O28: 2295.73 | Q28: Bags | T28: 905.0495414 | U28: 1995.29032 | V28: 104.9168447 | W28: 94954.94214
A29: Fuel | D29: 759.9829551 | E29: 1675.473622 | F29: 77.03350393 | G29: 129067.6039 | I29: Fuel | L29: 1080.256819 | M29: 2381.555788 | N29: 2.310044997 | O29: 2495.44186 | Q29: Fuel | T29: 987.4442896 | U29: 2176.93943 | V29: 104.9933159 | W29: 103675.0503
A30: TOW | C30: =C19 -> 757 | D30: 759.9829551 | E30: =E29 -> 1675.473622 | F30: =F29 -> 77.03350393 | G30: 129067.6039 | I30: TOW | K30: =K19 -> 1088 | L30: =L29 -> 1080.256819 | M30: 2381.555788 | N30: 2.310044997 | O30: =O29 -> 2495.44186 | Q30: TOW | S30: =S19 -> 1043 | T30: =T29 -> 987.4442896 | U30: 2176.93943 | V30: 104.9933159 | W30: =W29 -> 103675.0503
A31: Burn | D31: 745.6629551 | E31: =E30+E20 -> 1643.903464 | F31: =G31/E31 -> 77.06487437 | G31: =G30+G20 -> 126687.2139 | I31: Burn | L31: =L30+L20 -> 1058.776819 | M31: 2334.200551 | N31: 2.308057729 | O31: =O30+O20 -> 2443.71802 | Q31: Burn | T31: =T30+T20 -> 965.9642896 | U31: 2129.584192 | V31: 104.9746373 | W31: =W30+W20 -> 101401.751
A32: LW | C32: =C21 -> 757 | D32: 745.6629551 | E32: =E31 -> 1643.903464 | F32: =F31 -> 77.06487437 | G32: =G31 -> 126687.2139 | I32: LW | K32: =K21 -> 1088 | L32: =L31 -> 1058.776819 | M32: 2334.200551 | N32: 2.308057729 | O32: =O31 -> 2443.71802 | Q32: LW | S32: =S21 -> 1043 | T32: =T31 -> 965.9642896 | U32: 2129.584192 | V32: 104.9746373 | W32: =W31 -> 101401.751
A34: Fuel | I34: Fuel | Q34: Fuel
A35: Tank max | B35: =OOCFC!E5*Sheet1!D3 -> 113.5623 | C35: =B35*$D$2 -> 81.3106068 | I35: Tank max | J35: =INDIRECT(I10&"!E5")*D$3 -> 193.05591 | K35: =J35*$D$2 -> 138.2280316 | Q35: Tank max | R35: =INDIRECT(Q10&"!E5")*$D$3 -> 143.84558 | S35: =R35*$D$2 -> 102.9934353
A36: Tank %/Lit | B36: =INDIRECT(A$10&"!C17") -> 0.75 | C36: =B35*B36 -> 85.171725 | D36: =C36*D$2 -> 60.9829551 | E36: Kg | I36: Tank %/Lit | J36: =INDIRECT(I$10&"!C17") -> 0.6 | K36: =J35*J36 -> 115.833546 | L36: =K36*$D$2 -> 82.93681894 | M36: Kg | Q36: Tank %/Lit | R36: =INDIRECT(Q$10&"!C17") -> 0.8 | S36: =R35*R36 -> 115.076464 | T36: =S36*$D$2 -> 82.39474822 | U36: Kg
A37: Burn | B37: =B20 -> 20 | D37: =-(B37*D$2) -> -14.32 | E37: Kg | I37: Burn | J37: =J20 -> 30 | L37: =-(J37*$D$2) -> -21.48 | M37: Kg | Q37: Burn | R37: =R20 -> 30 | T37: =-(R37*$D$2) -> -21.48 | U37: Kg
A39: Envelope | I39: Envelope | Q39: Envelope
A40: Contour | B40: Total contour | D40: Utility contour | I40: Contour | J40: Total contour | L40: Utility contour | Q40: Contour | R40: Total contour | T40: Utility contour
B41: Weight | C41: CG | D41: Weight | E41: CG | J41: Weight | K41: CG | L41: Weight | M41: CG | R41: Weight | S41: CG | T41: Weight | U41: CG
A42: Pt1 | B42: 1100 | C42: 72.4 | D42: 1100 | E42: 72.4 | I42: Pt1 | J42: 700 | K42: 2.057 | L42: 700 | M42: 2.057 | Q42: Pt1 | R42: 600 | S42: 89 | T42: 600 | U42: 89
A43: Pt2 | B43: 1300 | C43: 72.4 | D43: 1300 | E43: 72.4 | I43: Pt2 | J43: 870 | K43: 2.057 | L43: 870 | M43: 2.057 | Q43: Pt2 | R43: 884.5061734 | S43: 89 | T43: 884.5062 | U43: 89
A44: Pt3 | B44: 1670 | C44: 73.7 | D44: 1670 | E44: 73.7 | I44: Pt3 | J44: 1088 | K44: 2.26 | L44: 929 | M44: 2.112 | Q44: Pt3 | R44: 1043.262 | S44: 98 | T44: 907.1847 | U44: 90
A45: Pt4 | B45: 1670 | C45: 78.5 | D45: 1670 | E45: 78.5 | I45: Pt4 | J45: 1088 | K45: 2.349 | L45: 929 | M45: 2.167 | Q45: Pt4 | R45: 1043.262 | S45: 120 | T45: 907.1847 | U45: 103
A46: Pt5 | B46: 1100 | C46: 78.5 | D46: 1100 | E46: 78.5 | I46: Pt5 | J46: 700 | K46: 2.349 | L46: 700 | M46: 2.167 | Q46: Pt5 | R46: 600 | S46: 120 | T46: 600 | U46: 103
A47: Pt6 | B47: 1100 | C47: 72.4 | D47: 1100 | E47: 72.4 | I47: Pt6 | J47: 700 | K47: 2.057 | L47: 700 | M47: 2.057 | Q47: Pt6 | R47: 600 | S47: 89 | T47: 600 | U47: 89
A48: Pt7 | I48: Pt7 | Q48: Pt7
A49: Pt8 | G49: (False = within env) | I49: Pt8 | O49: (False = within env) | Q49: Pt8 | W49: (False = within env)
A50: Envelope score | C50: =MAX(C42:C47) -> 78.5 | D50: (Max right CG) | F50: CG in envelope check | G50: =IF(PtInPoly(E19,F19,B42:C47),FALSE,TRUE) ->  | I50: Envelope score | K50: =MAX(K42:K47) -> 2.349 | L50: (Max right CG) | N50: CG in envelope check | O50: =IF(PtInPoly(L19,N19,J42:K47),FALSE,TRUE) ->  | Q50: Envelope score | S50: =MAX(S42:S47) -> 120 | T50: (Max right CG) | V50: CG in envelope check | W50: =IF(PtInPoly(T19,V19,R42:S47),FALSE,TRUE) -> 
A52: Alerts | F52: (False = ok) | I52: Alerts | N52: (False = ok) | Q52: Alerts | V52: (False = ok)
A53: Over MTOW | F53: =IF(D19>C19,TRUE) -> TRUE | G53: =D19-C19 -> 2.9829551 | I53: Over MTOW | N53: =IF(L19>K19,TRUE) -> FALSE | O53: =L19-K19 -> -7.743181064 | Q53: Over MTOW | V53: =IF(T19>S19,TRUE) -> FALSE | W53: =T19-S19 -> -55.55571038
A54: Over MLW | F54: =IF(D21>C21,TRUE) -> FALSE | G54: =D21-C21 -> -11.3370449 | I54: Over MLW | N54: =IF(L21>K21,TRUE) -> FALSE | O54: =L21-K21 -> -29.22318106 | Q54: Over MLW | V54: =IF(T21>S21,TRUE) -> FALSE | W54: =T21-S21 -> -77.03571038
A55: Outside envelope | F55: =G50 ->  | I55: Outside envelope | N55: =O50 ->  | Q55: Outside envelope | V55: =W50 -> 
A56: Poligon check inactive | F56: =IF(ISERROR(F55),TRUE,FALSE) -> TRUE | I56: Poligon check inactive | N56: =IF(ISERROR(N55),TRUE,FALSE) -> TRUE | Q56: Poligon check inactive | V56: =IF(ISERROR(V55),TRUE,FALSE) -> TRUE
A57: Notes | B57: =IF(F56,"Envelope check inactive, verify location CG in graphic","(Nil)") -> Envelope check inactive, verify location CG in graphic | I57: Notes | J57: =IF(N56,CONCATENATE("Fuel up to the TAB's equals 72% or 139 lit usable (36,4 Usg)",CHAR(10),"Envelope check inactive, verify location CG in graphic"),"Fuel up to the TAB's equals 72% or 139 lit usable (36,4 Usg)") -> Fuel up to the TAB's equals 72% or 139 lit usable (36,4 Usg) Envelope check inactive, verify location CG in graphic | Q57: Notes | R57: =IF(V56,"Envelope check inactive, verify location CG in graphic","(Nil)") -> Envelope check inactive, verify location CG in graphic
